bitfinex/quotes_BTCUSD_20250115
["timestamp","ask_amount","ask_price","bid_price","bid_amount"]
[1736968801635,0.6045257,99424.0,99423.0,1.23488304]
[1736968801836,0.6005257,99424.0,99423.0,1.23488304]
[1736968802045,0.6005257,99424.0,99423.0,1.15441904]
[1736968802277,0.6045257,99424.0,99423.0,1.13430304]
[1736968802709,0.6105257,99424.0,99423.0,1.13530304]
[1736968802924,0.6045257,99424.0,99423.0,1.09407104]
[1736968803137,0.6045257,99424.0,99423.0,1.03372304]
[1736968803357,0.5995257,99424.0,99423.0,1.03372304]
[1736968803839,0.6015257,99424.0,99423.0,1.04972304]
[1736968804052,0.6015257,99424.0,99423.0,1.00121224]
[1736968804271,0.2316,99415.0,99414.0,0.005742]
[1736968804487,0.0816,99415.0,99414.0,1.01116824]
[1736968805167,0.0816,99415.0,99414.0,1.51116824]
[1736968805858,0.558,99415.0,99414.0,1.51216824]
[1736968806286,0.558,99415.0,99414.0,1.43169624]
[1736968806492,0.607,99415.0,99414.0,1.42585624]
[1736968806705,0.607,99415.0,99414.0,1.42685624]
[1736968806706,0.613,99415.0,99414.0,1.42685624]
[1736968807350,0.613,99415.0,99414.0,1.50732824]
[1736968807950,0.32324362,99415.0,99414.0,1.50732824]
[1736968811017,0.40404362,99415.0,99414.0,1.50732824]
[1736968811679,0.72444362,99415.0,99414.0,1.50732824]
[1736968812253,0.72444362,99415.0,99414.0,1.50818314]
[1736968815731,0.12424362,99415.0,99414.0,1.90235006]
[1736968815941,0.12424362,99415.0,99414.0,1.89651006]
[1736968816152,0.12424362,99415.0,99414.0,1.90235006]
[1736968816464,0.12424362,99415.0,99414.0,1.81975006]
[1736968816669,0.11824362,99415.0,99414.0,1.81875006]
[1736968817082,0.12024362,99415.0,99414.0,1.81875006]
[1736968817302,0.12024362,99415.0,99414.0,1.81191006]
[1736968817303,0.11424362,99415.0,99414.0,1.81191006]
[1736968817556,0.11724362,99415.0,99414.0,1.81775006]
[1736968818014,0.11424362,99415.0,99414.0,1.81775006]
[1736968818244,0.107,99415.0,99414.0,1.81775006]
[1736968818455,0.107,99415.0,99414.0,1.90035006]
[1736968819354,0.105,99415.0,99414.0,1.90035006]
[1736968819779,0.104,99415.0,99414.0,1.90035006]
[1736968819993,0.102,99415.0,99414.0,1.90035006]
[1736968820232,0.103,99415.0,99414.0,1.90035006]
[1736968820450,0.103,99415.0,99414.0,1.90135006]
[1736968820660,0.102,99415.0,99414.0,1.90035006]
[1736968820879,0.103,99415.0,99414.0,1.90135006]
[1736968825604,0.1047955,99415.0,99414.0,1.90135006]
[1736968829317,0.1047955,99415.0,99414.0,2.00135006]
[1736968829977,0.1047955,99415.0,99414.0,3.50135006]
[1736968832027,0.1047955,99415.0,99414.0,3.50447109]
[1736968834660,0.1047955,99415.0,99414.0,2.49914285]
[1736968835397,0.1047955,99415.0,99414.0,2.49330285]
[1736968835658,0.1047955,99415.0,99414.0,2.59914285]
[1736968835871,0.1047955,99415.0,99414.0,2.7760686]
[1736968836524,0.1037955,99415.0,99414.0,2.7760686]
[1736968836755,0.1037955,99415.0,99414.0,2.7750686]
[1736968836958,0.1037955,99415.0,99414.0,2.7870784]
[1736968837592,0.1047955,99415.0,99414.0,2.7850686]
[1736968838370,0.1047955,99415.0,99414.0,2.9580686]
[1736968838579,0.1047955,99415.0,99414.0,3.1592466]
[1736968838783,0.0017953,99435.0,99414.0,3.1592466]
[1736968838784,0.0017953,99435.0,99423.0,0.6]
[1736968838982,0.0017953,99435.0,99423.0,1.91592455]
[1736968839183,0.0017953,99435.0,99423.0,1.91895807]
[1736968839397,0.0017953,99435.0,99423.0,3.59195807]
[1736968840014,0.00279593,99424.0,99423.0,3.60095807]
[1736968840207,0.00279593,99424.0,99423.0,3.59195807]
[1736968840413,0.00179593,99424.0,99423.0,3.59195807]
[1736968840617,0.00279593,99424.0,99423.0,3.60095807]
[1736968841025,0.00279593,99424.0,99423.0,4.30679807]
[1736968841230,0.00279593,99424.0,99423.0,4.27567232]
[1736968841472,0.00279593,99424.0,99423.0,3.57967232]
[1736968841930,0.00279593,99424.0,99423.0,3.58969677]
[1736968842878,0.00279593,99424.0,99423.0,3.56085677]
[1736968843078,0.00279593,99424.0,99423.0,3.56669677]
[1736968843500,0.00279593,99424.0,99423.0,3.56659729]
[1736968843706,0.00279593,99424.0,99423.0,3.56669677]
[1736968846107,0.00284601,99424.0,99423.0,1.51085677]
[1736968846315,0.00284601,99424.0,99423.0,2.0782076]
[1736968846525,0.00284601,99424.0,99423.0,2.08251517]
[1736968846729,0.00284601,99424.0,99423.0,1.38251517]
[1736968846931,0.00184601,99424.0,99423.0,1.37606969]
[1736968847398,0.00184601,99424.0,99423.0,1.38506969]
[1736968847574,0.00184601,99424.0,99423.0,1.37606969]
[1736968847778,0.00184601,99424.0,99423.0,1.27206969]
[1736968848123,0.00184601,99424.0,99423.0,1.36922969]
[1736968848357,0.00184601,99424.0,99423.0,1.37506969]
[1736968848551,0.00184601,99424.0,99423.0,1.37206969]
[1736968848752,0.00284601,99424.0,99423.0,1.37606969]
[1736968849159,0.00284601,99424.0,99423.0,1.37206969]
[1736968849381,0.00184601,99424.0,99423.0,1.37306969]
[1736968849588,0.00284601,99424.0,99423.0,1.37306969]
[1736968850205,0.00284601,99424.0,99423.0,1.37206969]
[1736968850403,0.00284601,99424.0,99423.0,1.37406969]
[1736968850897,0.00184601,99424.0,99423.0,2.87492459]
[1736968851235,0.00284601,99424.0,99423.0,2.87492459]
[1736968858359,0.00284601,99424.0,99423.0,2.95722459]
[1736968860522,0.00284601,99424.0,99423.0,3.10622459]
[1736968862251,0.00284601,99424.0,99423.0,2.87492459]
[1736968863209,0.00284601,99424.0,99423.0,2.97492459]
[1736968863455,0.00284601,99424.0,99423.0,2.86908459]
[1736968863665,0.00284601,99424.0,99423.0,2.97492459]
[1736968866896,0.00284601,99424.0,99423.0,3.47492459]
[1736968868400,0.00284601,99424.0,99423.0,3.46908459]
[1736968868603,0.00284601,99424.0,99423.0,1.87492459]
[1736968869190,0.00284601,99424.0,99423.0,0.81935271]
[1736968869463,0.08104601,99424.0,99423.0,0.61351271]
[1736968869665,0.08104601,99424.0,99423.0,0.44893779]
[1736968869865,0.08104601,99424.0,99423.0,0.45653972]
[1736968870813,0.08104601,99424.0,99423.0,0.50760172]
[1736968871058,0.08004601,99424.0,99423.0,0.51344172]
[1736968871246,0.08804601,99424.0,99423.0,0.51344172]
[1736968871708,0.08404601,99424.0,99423.0,0.51344172]
[1736968872161,0.08704601,99424.0,99423.0,0.47320972]
[1736968872386,0.08704601,99424.0,99423.0,0.44725372]
[1736968872564,0.08704601,99424.0,99423.0,0.45309372]
[1736968873354,0.08704601,99424.0,99423.0,0.61766864]
[1736968873540,0.08704601,99424.0,99423.0,0.61852354]
[1736968877903,0.08304601,99424.0,99423.0,0.61852354]
[1736968878178,0.08004601,99424.0,99423.0,0.61852354]
[1736968878412,0.00384601,99424.0,99423.0,0.61852354]
[1736968879697,0.00584601,99424.0,99423.0,0.61852354]
[1736968885666,0.00584601,99424.0,99423.0,0.61268354]
[1736968885886,0.00584601,99424.0,99423.0,0.61852354]
[1736968891487,0.00384601,99424.0,99423.0,0.61852354]
[1736968892235,0.00584601,99424.0,99423.0,0.61852354]
[1736968892944,0.00384601,99424.0,99423.0,0.61852354]
[1736968893252,0.00484601,99424.0,99423.0,0.61852354]
[1736968897215,0.00484601,99424.0,99423.0,0.61268354]
[1736968897362,0.00484601,99424.0,99423.0,0.61852354]
[1736968899688,0.00484601,99424.0,99423.0,0.61268354]
[1736968899900,0.00484601,99424.0,99423.0,0.61852354]
[1736968905171,0.00484601,99424.0,99423.0,0.61268354]
[1736968905407,0.00484601,99424.0,99423.0,0.61852354]
[1736968907275,0.00284601,99424.0,99423.0,0.61852354]
[1736968907452,0.00184601,99424.0,99423.0,0.61852354]
[1736968907858,0.00184601,99424.0,99423.0,0.62052354]
[1736968915224,0.00184601,99424.0,99423.0,0.61468354]
[1736968915429,0.00184601,99424.0,99423.0,0.62052354]
[1736968916858,0.00184601,99424.0,99423.0,2.12052354]
[1736968920626,0.00184601,99424.0,99423.0,0.62052354]
[1736968921141,0.00184601,99424.0,99423.0,2.12052354]
[1736968921364,0.00184601,99424.0,99423.0,0.62052354]
[1736968921878,0.00184601,99424.0,99423.0,0.72052354]
[1736968922091,0.00184601,99424.0,99423.0,0.94542354]
[1736968922304,0.00184601,99424.0,99423.0,0.97659912]
[1736968922508,0.00184601,99424.0,99423.0,2.47659912]
[1736968929232,0.00184601,99424.0,99423.0,2.37659912]
[1736968929445,0.00184601,99424.0,99423.0,2.34585912]
[1736968929653,0.00184601,99424.0,99423.0,0.82052354]
[1736968930070,0.00184601,99424.0,99423.0,2.32052354]
[1736968934321,0.00184601,99424.0,99423.0,2.22052354]
[1736968934928,0.00184601,99424.0,99423.0,2.12052354]
[1736968935161,0.00184601,99424.0,99423.0,2.22052354]
[1736968935805,0.00184601,99424.0,99423.0,2.21468354]
[1736968935978,0.00184601,99424.0,99423.0,2.22052354]
[1736968937139,0.00284601,99424.0,99423.0,2.22052354]
[1736968937335,0.00284601,99424.0,99423.0,2.21852354]
[1736968942427,0.00284601,99424.0,99423.0,0.71268354]
[1736968942680,0.00284601,99424.0,99423.0,0.71852354]
[1736968944207,0.00284601,99424.0,99423.0,0.61852354]
[1736968946112,0.00284601,99424.0,99423.0,0.61268354]
[1736968946325,0.04964601,99424.0,99423.0,0.61852354]
[1736968947186,0.04864601,99424.0,99423.0,0.61852354]
[1736968947661,0.05564601,99424.0,99423.0,0.61852354]
[1736968948530,0.05564601,99424.0,99423.0,0.51429662]
[1736968948914,0.05564601,99424.0,99423.0,0.3876579]
[1736968948915,0.28134601,99424.0,99423.0,0.3876579]
[1736968950219,0.27734601,99424.0,99423.0,0.5084559]
[1736968950429,0.28334601,99424.0,99423.0,0.5094559]
[1736968950663,0.30234601,99424.0,99423.0,0.4491079]
[1736968950866,0.30234601,99424.0,99423.0,0.3887599]
[1736968951070,0.30534601,99424.0,99423.0,0.3485279]
[1736968951278,0.30534601,99424.0,99423.0,0.3082959]
[1736968951482,0.31034601,99424.0,99423.0,0.3082959]
[1736968952095,0.31034601,99424.0,99423.0,0.2479479]
[1736968952321,0.31034601,99424.0,99423.0,0.21280085]
[1736968952955,0.31034601,99424.0,99423.0,0.19268485]
[1736968953408,0.31034601,99424.0,99423.0,0.17256885]
[1736968953773,0.31034601,99424.0,99423.0,0.1272519]
[1736968954878,0.31034601,99424.0,99423.0,0.4616229]
[1736968955178,0.31034601,99424.0,99423.0,0.001]
[1736968955432,0.31034601,99424.0,99423.0,0.00608495]
[1736968955667,0.351168,99419.0,99418.0,0.00584]
[1736968955876,0.351168,99419.0,99418.0,1.01116824]
[1736968956705,0.355168,99419.0,99418.0,1.01116824]
[1736968957165,0.361168,99419.0,99418.0,1.01216824]
[1736968959951,0.361168,99419.0,99418.0,1.00632824]
[1736968960170,0.361168,99419.0,99418.0,1.01216824]
[1736968960532,0.37127734,99419.0,99418.0,1.01216824]
[1736968968541,0.37127734,99419.0,99418.0,1.01302314]
[1736968973685,0.37127734,99419.0,99418.0,1.0175854]
[1736968976848,0.37017834,99419.0,99418.0,1.0175854]
[1736968983422,0.37017834,99419.0,99418.0,1.0117454]
[1736968985878,0.37017834,99419.0,99418.0,0.00641716]
[1736968986286,0.37017834,99419.0,99418.0,0.0018549]
[1736968987515,0.37017834,99419.0,99418.0,0.5018549]
[1736968987958,0.37017834,99419.0,99418.0,0.61110052]
[1736968988823,0.37017834,99419.0,99418.0,0.5068736]
[1736968989209,0.44957834,99419.0,99418.0,0.5127136]
[1736968990119,0.70653231,99419.0,99414.0,0.0008549]
[1736968990348,0.70653231,99419.0,99389.0,0.0066949]
[1736968990349,0.201227,99390.0,99389.0,0.0066949]
[1736968990581,0.201239,99384.0,99378.0,0.05024364]
[1736968990823,0.2254788,99393.0,99378.0,0.05024364]
[1736968990824,0.20248883,99388.0,99387.0,0.00584]
[1736968991106,0.201231,99388.0,99387.0,0.00584]
[1736968991919,0.20128105,99388.0,99387.0,0.00584]
[1736968992147,0.20328105,99388.0,99387.0,0.00584]
[1736968992357,0.351247,99380.0,99379.0,0.10422692]
[1736968992558,0.173,99379.0,99378.0,1.05557188]
[1736968992827,0.173,99377.0,99376.0,0.0058409]
[1736968993075,0.023,99376.0,99373.0,0.00584]
[1736968993359,0.023,99376.0,99372.0,0.06338899]
[1736968993360,0.023,99374.0,99372.0,0.06338899]
[1736968993665,0.30205802,99373.0,99372.0,0.06338899]
[1736968993822,0.50205802,99373.0,99372.0,0.02124899]
[1736968994067,0.023,99367.0,99353.0,0.0003]
[1736968994327,0.3513,99354.0,99353.0,0.0003]
[1736968994581,0.3743,99354.0,99353.0,1e-06]
[1736968994823,0.15,99351.0,99342.0,0.05024364]
[1736968995074,0.02425838,99350.0,99338.0,0.49021153]
[1736968995268,0.201334,99337.0,99336.0,0.00584]
[1736968995728,0.201334,99337.0,99336.0,0.00634119]
[1736968997222,0.21715212,99337.0,99336.0,0.00634119]
[1736968997717,0.22015212,99337.0,99336.0,0.00634119]
[1736969000559,0.22015212,99337.0,99336.0,0.11056811]
[1736969000788,0.22015212,99337.0,99336.0,1.61056811]
[1736969001209,0.22015212,99337.0,99336.0,0.10472811]
[1736969001414,0.210334,99337.0,99336.0,0.28766811]
[1736969001619,0.210334,99337.0,99336.0,1.78766811]
[1736969002232,0.207334,99337.0,99336.0,1.78766811]
[1736969002431,0.207334,99337.0,99336.0,0.28766811]
[1736969002990,0.201334,99337.0,99336.0,0.28766811]
[1736969003205,0.201334,99337.0,99336.0,0.33706811]
[1736969003429,0.201334,99337.0,99336.0,0.33222811]
[1736969003632,0.201334,99337.0,99336.0,0.33806811]
[1736969006203,0.201334,99337.0,99336.0,0.33122811]
[1736969006456,0.201334,99337.0,99336.0,0.33892371]
[1736969006634,0.201334,99337.0,99336.0,0.3564427]
[1736969009731,0.201334,99337.0,99336.0,0.3378571]
[1736969010981,0.201333,99338.0,99337.0,0.1]
[1736969011184,0.201333,99338.0,99337.0,0.20422692]
[1736969011787,0.201332,99339.0,99337.0,0.20422692]
[1736969012147,0.201332,99339.0,99338.0,0.10422692]
[1736969013351,0.00179677,99350.0,99347.0,0.1773]
[1736969013558,0.00179677,99350.0,99349.0,0.10422692]
[1736969015157,0.00179677,99350.0,99349.0,0.10722692]
[1736969015356,0.00179677,99350.0,99349.0,0.11306692]
[1736969015692,0.00179677,99350.0,99349.0,0.11406692]
[1736969016275,0.00179677,99350.0,99349.0,0.10822692]
[1736969016476,0.00179677,99350.0,99349.0,0.11106692]
[1736969016884,0.00279677,99350.0,99349.0,0.11106692]
[1736969017086,0.00279677,99350.0,99349.0,0.11006692]
[1736969017308,0.00379677,99350.0,99349.0,0.11006692]
[1736969017718,0.00279677,99350.0,99349.0,0.11006692]
[1736969018286,0.00379677,99350.0,99349.0,0.11006692]
[1736969019293,0.00379677,99350.0,99349.0,0.12866932]
[1736969020737,0.00379677,99350.0,99349.0,0.12282932]
[1736969020913,0.24458247,99350.0,99349.0,0.0186024]
[1736969021121,0.23349677,99350.0,99349.0,0.0244424]
[1736969021504,0.15379677,99350.0,99349.0,0.12866932]
[1736969021710,0.15279677,99350.0,99349.0,0.12866932]
[1736969021914,0.15679677,99350.0,99349.0,0.12866932]
[1736969022120,0.00679677,99350.0,99349.0,0.12866932]
[1736969022647,0.01668356,99350.0,99349.0,0.11006692]
[1736969023168,0.01568356,99350.0,99349.0,0.11006692]
[1736969023614,0.02368356,99350.0,99349.0,0.11106692]
[1736969023803,0.01568356,99350.0,99349.0,0.11006692]
[1736969024009,0.01168356,99350.0,99349.0,0.11106692]
[1736969024220,0.01968356,99350.0,99349.0,0.11106692]
[1736969024867,0.01668356,99350.0,99349.0,0.11106692]
[1736969025719,0.01968356,99350.0,99349.0,0.11106692]
[1736969026503,0.01968356,99350.0,99349.0,0.00684]
[1736969028325,0.01968356,99350.0,99349.0,0.001]
[1736969028530,0.01968356,99350.0,99349.0,0.00684]
[1736969029828,0.02022356,99350.0,99349.0,0.00684]
[1736969030040,0.02022356,99350.0,99349.0,0.05708364]
[1736969032129,0.02022356,99350.0,99349.0,0.16131056]
[1736969036644,0.01033677,99350.0,99349.0,0.16131056]
[1736969040512,0.01033677,99350.0,99349.0,0.16031056]
[1736969042781,0.01033677,99350.0,99349.0,0.28891056]
[1736969043250,0.01033677,99350.0,99349.0,1.78891056]
[1736969043511,0.00233677,99350.0,99349.0,1.78891056]
[1736969043912,0.00233677,99350.0,99349.0,1.74066692]
[1736969045230,0.00233677,99350.0,99349.0,1.73866692]
[1736969045474,0.00233677,99350.0,99349.0,2.24166692]
[1736969051471,0.00233677,99350.0,99349.0,2.23582692]
[1736969051693,0.00233677,99350.0,99349.0,2.24166692]
[1736969052964,0.00233677,99350.0,99349.0,2.24252242]
[1736969060625,0.00233677,99350.0,99349.0,0.74252242]
[1736969064662,0.00233677,99350.0,99349.0,2.24252242]
[1736969065699,0.00233677,99350.0,99349.0,2.34252242]
[1736969068179,0.00233677,99350.0,99349.0,2.37375661]
[1736969075840,0.00233677,99350.0,99349.0,2.41395661]
[1736969075995,0.00233677,99350.0,99349.0,2.37375661]
[1736969076926,0.00233677,99350.0,99349.0,2.41395661]
[1736969077128,0.00233677,99350.0,99349.0,2.41095661]
[1736969077509,0.00233677,99350.0,99349.0,2.41595661]
[1736969078766,0.00233677,99350.0,99349.0,2.37575661]
[1736969080247,0.00233677,99350.0,99349.0,2.92575661]
[1736969080453,0.00233677,99350.0,99349.0,2.94875661]
[1736969080682,0.00233677,99350.0,99349.0,3.48585661]
[1736969081289,0.00233677,99350.0,99349.0,3.48085661]
[1736969081542,0.00333677,99350.0,99349.0,3.48985661]
[1736969081739,0.00333677,99350.0,99349.0,3.49285661]
[1736969088708,0.00333677,99350.0,99349.0,3.66035661]
[1736969090368,0.00333677,99350.0,99349.0,3.49285661]
[1736969093313,0.0825,99389.0,99388.0,0.1]
[1736969093554,0.201228,99390.0,99388.0,1.4676388]
[1736969093838,0.201228,99390.0,99389.0,0.10422692]
[1736969094038,0.201228,99390.0,99389.0,1.60422692]
[1736969094751,0.201228,99390.0,99389.0,1.60433281]
[1736969096496,0.202228,99390.0,99389.0,1.60433281]
[1736969097497,0.203228,99390.0,99389.0,1.60433281]
[1736969100095,0.2050233,99390.0,99389.0,1.60433281]
[1736969101108,0.2875233,99390.0,99389.0,0.11017281]
[1736969105278,0.2875233,99390.0,99389.0,1.61017281]
[1736969105994,0.29772145,99390.0,99389.0,1.61017281]
[1736969106478,0.2050233,99390.0,99389.0,1.61017281]
[1736969107429,0.2040233,99390.0,99389.0,1.61017281]
[1736969107814,0.2030233,99390.0,99389.0,1.61017281]
[1736969108052,0.2030233,99390.0,99389.0,1.61117281]
[1736969118177,0.2030233,99390.0,99389.0,0.11117281]
[1736969118505,0.20295249,99390.0,99389.0,0.11117281]
[1736969118706,0.20295249,99390.0,99389.0,0.10533281]
[1736969118914,0.20295249,99390.0,99389.0,0.11117281]
[1736969119156,0.20295249,99390.0,99389.0,0.10533281]
[1736969119354,0.20295249,99390.0,99389.0,0.11117281]
[1736969120175,0.20295249,99390.0,99389.0,0.10433281]
[1736969120442,0.32625249,99390.0,99389.0,0.11117281]
[1736969120779,0.32725249,99390.0,99389.0,0.11017281]
[1736969121075,0.32825249,99390.0,99389.0,0.11017281]
[1736969121408,0.32725249,99390.0,99389.0,0.11017281]
[1736969121606,0.32925249,99390.0,99389.0,0.11017281]
[1736969122563,0.32825249,99390.0,99389.0,0.11017281]
[1736969122781,0.32925249,99390.0,99389.0,0.11017281]
[1736969124528,0.32925249,99390.0,99389.0,1.61017281]
[1736969124752,0.33949809,99390.0,99389.0,1.61017281]
[1736969124969,0.20595249,99390.0,99389.0,1.61017281]
[1736969125434,0.20595249,99390.0,99389.0,0.11017281]
[1736969125637,0.20495249,99390.0,99389.0,0.61017281]
[1736969126095,0.20595249,99390.0,99389.0,2.11017281]
[1736969126582,0.20295249,99390.0,99389.0,2.11017281]
[1736969126774,0.20495249,99390.0,99389.0,2.11017281]
[1736969128547,0.20495249,99390.0,99389.0,0.61017281]
[1736969132286,0.20395249,99390.0,99389.0,0.61017281]
[1736969132853,0.20295249,99390.0,99389.0,0.61017281]
[1736969133028,0.20295249,99390.0,99389.0,0.61117281]
[1736969133540,0.20295249,99390.0,99389.0,2.11117281]
[1736969133950,0.20295249,99390.0,99389.0,2.14238625]
[1736969134786,0.20295249,99390.0,99389.0,2.11117281]
[1736969135877,0.20295249,99390.0,99389.0,2.11202741]
[1736969138639,0.20295249,99390.0,99389.0,2.14326162]
[1736969142538,0.0017953,99390.0,99389.0,2.14326162]
[1736969145592,0.0017953,99390.0,99389.0,2.13742162]
[1736969145796,0.0017953,99390.0,99389.0,2.14326162]
[1736969148166,0.0017953,99390.0,99389.0,2.39326162]
[1736969148382,0.0017953,99390.0,99389.0,2.47436162]
[1736969149012,0.0017953,99390.0,99389.0,2.67559062]
[1736969149302,0.0017953,99390.0,99389.0,2.47436162]
[1736969151412,0.0017953,99390.0,99389.0,2.36852162]
[1736969151646,0.0017953,99390.0,99389.0,0.79326162]
[1736969151909,0.2030223,99390.0,99389.0,0.79326162]
[1736969152144,0.2030223,99390.0,99389.0,0.60618741]
[1736969152386,0.2030223,99390.0,99389.0,0.61202741]
[1736969156311,0.2030223,99390.0,99389.0,2.11202741]
[1736969158775,0.2030223,99390.0,99389.0,2.14328138]
[1736969159128,0.2030223,99390.0,99389.0,2.16203802]
[1736969159721,0.0017953,99390.0,99389.0,2.16203802]
[1736969160185,0.0017953,99390.0,99389.0,2.31203802]
[1736969161832,0.0017953,99390.0,99389.0,2.31103802]
[1736969162158,0.0017953,99390.0,99389.0,2.31903802]
[1736969163421,0.0017953,99390.0,99389.0,2.30028138]
[1736969163646,0.0017953,99390.0,99389.0,2.40028138]
[1736969165476,0.0017953,99390.0,99389.0,2.41023825]
[1736969168166,0.0017953,99390.0,99389.0,2.40028138]
[1736969168338,0.0017953,99390.0,99389.0,2.30028138]
[1736969169564,0.0017953,99390.0,99389.0,2.14444138]
[1736969169783,0.0814953,99390.0,99389.0,0.61902741]
[1736969170343,0.0814953,99390.0,99389.0,0.61702741]
[1736969170804,0.0814953,99390.0,99389.0,0.61802741]
[1736969171046,0.0814953,99390.0,99389.0,0.61202741]
[1736969171224,0.0017953,99390.0,99389.0,0.61102741]
[1736969171404,0.0017953,99390.0,99389.0,0.61302741]
[1736969171600,0.0017953,99390.0,99389.0,0.61402741]
[1736969174001,0.5017953,99390.0,99389.0,0.61402741]
[1736969174529,0.5017953,99390.0,99389.0,2.11402741]
[1736969175169,0.5017953,99390.0,99389.0,0.61402741]
[1736969175722,0.5814953,99390.0,99389.0,0.61402741]
[1736969176497,0.6313953,99390.0,99389.0,0.71402741]
[1736969176729,0.7813953,99390.0,99389.0,0.48383749]
[1736969176960,0.7813953,99390.0,99389.0,0.34197649]
[1736969177572,0.480845,99381.0,99380.0,0.00584]
[1736969177825,0.0797,99379.0,99374.0,0.00584]
[1736969178080,0.280955,99376.0,99375.0,0.10422692]
[1736969178996,0.280955,99376.0,99375.0,0.10433295]
[1736969180734,0.283955,99376.0,99375.0,0.10433295]
[1736969181247,0.288955,99376.0,99375.0,0.10533295]
[1736969183344,0.288955,99376.0,99375.0,3e-08]
[1736969183468,0.288955,99376.0,99375.0,0.00584]
[1736969183666,0.288955,99376.0,99375.0,1.01116824]
[1736969184566,0.288955,99376.0,99374.0,0.5]
[1736969184786,0.22885802,99375.0,99374.0,1.48520224]
[1736969185016,0.2276,99375.0,99374.0,1.43977691]
[1736969185884,0.2276,99375.0,99374.0,1.54400383]
[1736969186094,0.2276,99375.0,99374.0,1.60955483]
[1736969186453,0.2276,99375.0,99374.0,1.61639483]
[1736969187431,0.2316,99375.0,99374.0,1.61639483]
[1736969187646,0.2316,99375.0,99374.0,1.61539483]
[1736969187849,0.2406,99375.0,99374.0,1.66663847]
[1736969188417,0.2366,99375.0,99374.0,1.66663847]
[1736969188637,0.2306,99375.0,99374.0,1.66563847]
[1736969189087,0.2376,99375.0,99374.0,1.66663847]
[1736969191171,0.0876,99375.0,99374.0,1.66663847]
[1736969193706,0.01,99375.0,99374.0,1.66663847]
[1736969194545,0.007,99375.0,99374.0,1.66663847]
[1736969194745,0.001,99375.0,99374.0,1.66563847]
[1736969195177,0.001,99375.0,99374.0,1.66663847]
[1736969196214,0.00998675,99397.0,99388.0,0.1]
[1736969196518,0.20302366,99389.0,99388.0,1.2597988]
[1736969197338,0.20502366,99389.0,99388.0,1.2597988]
[1736969198173,0.20902366,99389.0,99388.0,1.2597988]
[1736969198376,0.20902366,99389.0,99388.0,1.7597988]
[1736969199887,0.00579466,99389.0,99388.0,3.3386988]
[1736969200028,0.00579466,99389.0,99388.0,3.2597988]
[1736969200827,0.00179466,99389.0,99388.0,3.2597988]
[1736969201040,0.00179466,99389.0,99388.0,1.7656388]
[1736969201922,0.00279466,99389.0,99388.0,1.7656388]
[1736969202129,0.00179466,99389.0,99388.0,1.7656388]
[1736969202310,0.00279466,99389.0,99388.0,1.7656388]
[1736969202721,0.00179466,99389.0,99388.0,1.7656388]
[1736969203911,0.00279466,99389.0,99388.0,1.7656388]
[1736969204789,0.00179466,99389.0,99388.0,1.7656388]
[1736969205105,0.00179466,99389.0,99388.0,3.2656388]
[1736969206170,0.00179466,99389.0,99388.0,1.7656388]
[1736969213854,0.00179466,99389.0,99388.0,3.2656388]
[1736969214876,0.00179466,99389.0,99388.0,3.35614228]
[1736969215945,0.00179466,99389.0,99388.0,3.35914228]
[1736969216150,0.00179466,99389.0,99388.0,3.3490388]
[1736969218044,0.00279466,99389.0,99388.0,3.3560388]
[1736969226342,0.00279466,99389.0,99388.0,2.30046692]
[1736969226543,0.00279466,99389.0,99388.0,2.33166036]
[1736969232457,0.20402366,99389.0,99388.0,2.25126036]
[1736969232754,0.00279466,99389.0,99388.0,2.25126036]
[1736969232967,0.20402366,99389.0,99388.0,2.25126036]
[1736969233789,0.00279466,99389.0,99388.0,2.25126036]
[1736969233991,0.20402366,99389.0,99388.0,2.25126036]
[1736969234484,0.20402366,99389.0,99388.0,2.24542036]
[1736969234677,0.20402366,99389.0,99388.0,0.75126036]
[1736969235290,0.20402366,99389.0,99388.0,0.74826036]
[1736969235856,0.20402366,99389.0,99388.0,0.75126036]
[1736969237211,0.20302366,99389.0,99388.0,0.74126036]
[1736969237552,0.20302366,99389.0,99388.0,0.74526036]
[1736969237747,0.20302366,99389.0,99388.0,0.74726036]
[1736969238624,0.20302366,99389.0,99388.0,2.24726036]
[1736969238832,0.20302366,99389.0,99388.0,2.24326036]
[1736969239044,0.20302366,99389.0,99388.0,2.21206692]
[1736969240833,0.20302366,99389.0,99388.0,2.24434109]
[1736969241038,0.20302366,99389.0,99388.0,2.21306692]
[1736969241455,0.20302366,99389.0,99388.0,2.24434235]
[1736969241626,0.20302366,99389.0,99388.0,0.74434235]
[1736969242214,0.20302366,99389.0,99388.0,2.21306692]
[1736969245037,0.20302366,99389.0,99388.0,0.71306692]
[1736969245540,0.20302366,99389.0,99388.0,2.21306692]
[1736969246355,0.20302366,99389.0,99388.0,2.24434349]
[1736969248945,0.20287146,99389.0,99388.0,2.24434349]
[1736969251550,0.20292156,99389.0,99388.0,2.24434349]
[1736969254170,0.20292156,99389.0,99388.0,2.24519839]
[1736969255818,0.00169256,99389.0,99388.0,2.32169839]
[1736969261531,0.5017953,99390.0,99389.0,0.01380744]
[1736969261734,0.5017953,99390.0,99389.0,1.20488281]
[1736969262153,0.5017953,99390.0,99389.0,1.35488281]
[1736969263625,0.5017953,99390.0,99389.0,1.35988281]
[1736969263875,0.5017953,99390.0,99389.0,1.36188281]
[1736969265344,0.5017953,99390.0,99389.0,2.86188281]
[1736969277187,0.5017953,99390.0,99389.0,2.86273771]
[1736969279052,0.5017953,99390.0,99389.0,3.41873771]
[1736969279256,0.5017953,99390.0,99389.0,3.58793373]
[1736969280025,0.5017953,99390.0,99389.0,3.55693771]
[1736969280239,0.5017953,99390.0,99389.0,3.51673771]
[1736969281092,0.48894222,99390.0,99389.0,4.07683771]
[1736969281301,0.47011192,99390.0,99389.0,4.66029571]
[1736969281560,0.47011192,99390.0,99389.0,4.54747871]
[1736969281875,0.46911192,99390.0,99389.0,4.53031771]
[1736969282089,0.47011192,99390.0,99389.0,4.53631771]
[1736969282266,0.43636783,99390.0,99389.0,4.53631771]
[1736969282696,0.43636783,99390.0,99389.0,4.27509671]
[1736969282844,0.43636783,99390.0,99389.0,4.27009671]
[1736969283402,0.43636783,99390.0,99389.0,4.27909671]
[1736969284304,0.43636783,99390.0,99389.0,4.27009671]
[1736969285544,0.43636783,99390.0,99389.0,4.27909671]
[1736969286536,0.43636783,99390.0,99389.0,4.44659671]
[1736969288058,0.0017953,99423.0,99418.0,2.14409692]
[1736969288257,0.0022969,99419.0,99418.0,5.65212139]
[1736969288456,0.0022969,99419.0,99418.0,6.29693739]
[1736969288659,0.0022969,99419.0,99418.0,7.79693739]
[1736969288851,0.0017953,99423.0,99422.0,0.4961]
[1736969289074,0.0017953,99440.0,99423.0,0.80326]
[1736969289075,3.6e-07,99424.0,99423.0,0.80326]
[1736969289280,0.0017953,99440.0,99434.0,1.074138]
[1736969289488,0.00184541,99435.0,99434.0,4.89631639]
[1736969289694,0.00184541,99435.0,99434.0,5.80211639]
[1736969289903,0.00184541,99435.0,99434.0,4.6628368]